fUST/lending_fUST_20240707
["ID","MTS","AMOUNT","RATE_DAILY","PERIOD"]
[331371130,1720291979471,154.77557542,0.00013746,2]
[331371132,1720291985434,154.77557542,0.00013746,2]
[331371133,1720291988820,154.77557542,0.00013746,2]
[331371134,1720291993071,609.13959144,0.00013746,2]
[331371135,1720291996888,157.43386476,0.00013746,2]
[331371137,1720292006793,844.12159152,0.00013746,2]
[331371138,1720292011886,426.20056514,0.00013746,2]
[331371139,1720292013367,4697.34273195,0.00013746,2]
[331371140,1720292016195,807.88648297,0.00013746,2]
[331371141,1720292021994,187.6858195,0.00013746,2]
[331371142,1720292025425,309.30406586,0.00013746,2]
[331371143,1720292026730,2126.43441341,0.00013746,2]
[331371144,1720292026889,293.24074472,0.00013746,2]
[331371145,1720292028110,239.99334204,0.00013746,2]
[331371146,1720292033347,2101.88311219,0.00013746,2]
[331371147,1720292035054,598.75080863,0.00013746,2]
[331371148,1720292039322,286.83357324,0.00013746,2]
[331371149,1720292042733,155.1996061,0.00013746,2]
[331371150,1720292042979,402.64531294,0.00013746,2]
[331371151,1720292048563,183.07436655,0.00013746,2]
[331371152,1720292050397,195.78789883,0.00013746,2]
[331371153,1720292050461,1590.9546371,0.00015,2]
[331371156,1720292183559,551.21077231,0.00014999,2]
[331371157,1720292186569,202.67472277,0.00014999,2]
[331371158,1720292237917,844.12159152,0.00014999,2]
[331371159,1720292238081,187.6858195,0.00014999,2]
[331371160,1720292257853,185.21522135,0.00014999,2]
[331371161,1720292288634,208.65035491,0.00014999,2]
[331371162,1720292292455,11632.17903152,0.00014794,2]
[331371163,1720292299712,154.77557542,0.00014999,2]
[331371164,1720292303900,160.02135444,0.00014999,2]
[331371166,1720292331176,725.04696611,0.00014999,2]
[331371167,1720292368756,305.16943834,0.00014999,2]
[331371168,1720292389077,187.6858195,0.00014999,2]
[331371169,1720292392462,3137.77932824,0.00014999,2]
[331371170,1720292396314,844.12159152,0.00014999,2]
[331371171,1720292397820,532.07448423,0.00014999,2]
[331371172,1720292405934,517.80580605,0.00014999,2]
[331371173,1720292419035,187.6858195,0.00014999,2]
[331371174,1720292424891,154.77557542,0.00014999,2]
[331371175,1720292427780,182.29809528,0.00015,2]
[331371177,1720292437595,208.65035491,0.00014999,2]
[331371178,1720292439526,154.77557542,0.00014999,2]
[331371179,1720292450455,2132.45671248,0.00014999,2]
[331371181,1720292496751,272.10216877,0.00014999,2]
[331371182,1720292497190,155.1210509,0.00014999,2]
[331371183,1720292517065,490.92637027,0.00014999,2]
[331371184,1720292522959,1434.44237247,0.00014999,2]
[331371186,1720292547796,532.07448423,0.00014999,2]
[331371187,1720292592846,2101.88311219,0.00014999,2]
[331371188,1720292615262,517.80580605,0.00014999,2]
[331371189,1720292668812,4697.34273195,0.00014999,2]
[331371190,1720292681105,2101.88311219,0.00014999,2]
[331371192,1720292715732,725.04696611,0.00014999,2]
[331371193,1720292723061,208.65035491,0.00014999,2]
[331371194,1720292732110,1597.25650539,0.00014999,2]
[331371195,1720292743520,312.4264043,0.00014999,2]
[331371196,1720292743645,286.83357324,0.00014999,2]
[331371197,1720292745930,286.83357324,0.00014999,2]
[331371198,1720292748609,844.12159152,0.00014999,2]
[331371199,1720292753399,159.98872952,0.00014999,2]
[331371200,1720292755595,154.77557542,0.00014999,2]
[331371201,1720292763263,532.07448423,0.00014999,2]
[331371202,1720292792989,2101.88311219,0.00014999,2]
[331371203,1720292811256,1916.29526789,0.00014999,2]
[331371204,1720292830818,458.17298887,0.00014999,2]
[331371205,1720292832390,286.83357324,0.00014999,2]
[331371207,1720292841000,195.78789883,0.00014999,2]
[331371208,1720292842350,4697.34273195,0.00014999,2]
[331371210,1720292857004,808.0087546,0.00015,2]
[331371212,1720292866167,208.65035491,0.00014999,2]
[331371213,1720292871646,1039.06688618,0.00015,2]
[331371214,1720292915344,2096.13472651,0.00014999,2]
[331371215,1720292930756,777.12632108,0.00014999,2]
[331371216,1720292943804,777.12632108,0.00014999,2]
[331371217,1720292943849,343.79218004,0.00014999,2]
[331371218,1720292945184,-491.05706512,0.00015995,2]
[331371219,1720292945213,-300.0,0.00016254,2]
[331371220,1720292945243,-300.0,0.00016254,2]
[331371221,1720292945269,-566.66102029,0.00016255,2]
[331371222,1720292945293,-566.66102029,0.00016255,2]
[331371223,1720292945315,-154.76012181,0.00016255,2]
[331371224,1720292945337,-286.83357324,0.00016255,2]
[331371225,1720292945605,-300.0,0.00017766,2]
[331371226,1720292945633,-420.0,0.00017879,2]
[331371227,1720292945656,-525.93863422,0.0001818,2]
[331371228,1720292945682,-272.18368792,0.0001818,2]
[331371229,1720292945710,-904.60511831,0.0001818,2]
[331371230,1720292945733,-247.17594029,0.0001818,2]
[331371231,1720292945756,-155.10136158,0.0001818,2]
[331371232,1720292945779,-195.78789883,0.0001818,2]
[331371233,1720292945802,-139.24261216,0.0001818,2]
[331371234,1720292945984,4697.34273195,0.00014999,2]
[331371235,1720292946950,577.96439273,0.00014999,2]
[331371236,1720292949211,566.66102029,0.00014999,2]
[331371237,1720292960165,-510.1563651,0.00016255,2]
[331371238,1720292960187,-209.5831555,0.00016255,2]
[331371239,1720292960212,-195.78789883,0.00016255,2]
[331371240,1720292969137,-166.666666,0.00018827,2]
[331371241,1720292969161,-309.6650717,0.00018944,2]
[331371242,1720292969186,-3113.3136516,0.00019129,2]
[331371243,1720292969210,-178.4693371,0.00019178,2]
[331371244,1720292969239,-166.666666,0.0001934,2]
[331371245,1720292969266,-166.666666,0.00019853,2]
[331371246,1720292969290,-1745.39158577,0.0002,2]
[331371247,1720292969319,-763.32326228,0.0002,2]
[331371248,1720292969345,-166.666666,0.00020366,2]
[331371249,1720292969370,-166.666666,0.0002088,2]
[331371250,1720292969394,-789.77698638,0.00021095,2]
[331371251,1720292969420,-163.934932,0.00021096,2]
[331371252,1720292969444,-166.666666,0.00021393,2]
[331371253,1720292969468,-402.35776708,0.00021917,2]
[331371254,1720292969492,-301.86029608,0.0002217,2]
[331371255,1720292969525,-2529.49194118,0.00023175,2]
[331371256,1720292997962,-154.76784823,0.0001818,2]
[331371257,1720292998025,-639.72648065,0.0001818,2]
[331371258,1720292998089,-60.11018128,0.0001818,2]
[331371259,1720292998158,-506.55083901,0.0001818,2]
[331371260,1720292998217,-348.05367115,0.0001818,2]
[331371261,1720292998295,-429.07264993,0.0001818,2]
[331371262,1720292998364,-425.53186023,0.00023075,2]
[331371263,1720292998427,-854.60451016,0.00023075,2]
[331371264,1720292998563,-854.60451016,0.00023075,2]
[331371265,1720293034273,-510.1563651,0.0001818,2]
[331371268,1720293034284,-286.83357324,0.0001818,2]
[331371270,1720293034302,-286.76905884,0.0001818,2]
[331371273,1720293034321,-402.35776708,0.0001818,2]
[331371275,1720293034342,-374.63942513,0.0001818,2]
[331371276,1720293034352,-1108.38438258,0.0001818,2]
[331371277,1720293034364,-419.32606151,0.0001818,2]
[331371280,1720293040406,-28.83634165,0.0001818,2]
[331371281,1720293040424,-154.76784823,0.0001818,2]
[331371283,1720293040434,-154.77557542,0.0001818,2]
[331371285,1720293040446,-181.8878663,0.0001818,2]
[331371288,1720293040471,-154.76784823,0.00022943,2]
[331371290,1720293040489,-200.88921051,0.00022943,2]
[331371291,1720293040501,-1477.66780531,0.00023075,2]
[331371293,1720293040511,-2146.12761388,0.00023281,2]
[331371295,1720293040525,-154.76784823,0.00023453,2]
[331371297,1720293040541,-154.76784823,0.00023453,2]
[331371298,1720293040553,-425.48868556,0.00023455,2]
[331371300,1720293040564,-157.43386476,0.00023455,2]
[331371302,1720293040590,-458.17298887,0.00023455,2]
[331371304,1720293040602,-159.32279471,0.00023455,2]
[331371306,1720293040615,-154.76784823,0.00023455,2]
[331371308,1720293040627,-154.76784823,0.00023455,2]
[331371310,1720293040638,-179.85455723,0.00023455,2]
[331371311,1720293040650,-159.62974281,0.00023455,2]
[331371315,1720293040680,-318.617778,0.00023968,2]
[331371317,1720293040696,-318.617778,0.00023968,2]
[331371319,1720293040708,-154.76784823,0.00024481,2]
[331371321,1720293040724,-154.76784823,0.00024481,2]
[331371323,1720293040737,-154.76784823,0.00024481,2]
[331371324,1720293040752,-154.76784823,0.00025204,2]
[331371326,1720293040765,-165.08616365,0.00025501,2]
[331371328,1720293040792,-154.76784823,0.00025869,2]
[331371330,1720293040805,-155.19258173,0.00025902,2]
[331371332,1720293040816,-648.47386717,0.00027064,2]
[331371384,1720293046986,-308.101947,0.0001818,2]
[331371385,1720293046997,-154.76784823,0.0001818,2]
[331371386,1720293047007,-209.15804517,0.00022943,2]
[331371387,1720293047018,-458.17298887,0.00023455,2]
[331371388,1720293047033,-158.19021239,0.00023968,2]
[331371389,1720293047052,-154.76784823,0.00025204,2]
[331371390,1720293047063,-154.76784823,0.00025501,2]
[331371391,1720293047073,-1497.65374668,0.00027064,2]
[331371392,1720293047085,-193.69798923,0.00027194,2]
[331371393,1720293047104,-492.47001549,0.00027194,2]
[331371394,1720293047146,-163.934932,0.00027195,2]
[331371395,1720293047157,-572.03065656,0.00029453,30]
[331371402,1720293098653,374.63942513,0.00016255,2]
[331371403,1720293122892,445.59052774,0.00016255,2]
[331371406,1720293367189,294.92451643,0.00014999,2]
[331371407,1720293371376,735.49472631,0.00014999,2]
[331371408,1720293371422,256.7407362,0.00014999,2]
[331371409,1720293393143,773.67850654,0.00015,2]
[331371410,1720293393182,205.93984631,0.00015,2]
[331371411,1720293393222,127.78614019,0.00015,2]
[331371412,1720293403224,902.63310255,0.00014999,2]
[331371413,1720293403266,608.47272589,0.00014999,2]
[331371414,1720293416604,368.51184958,0.00014999,2]
[331371416,1720293457242,53.43466727,0.00014999,2]
[331371417,1720293457267,102.01979255,0.00014999,2]
[331371419,1720293518666,525.26351233,0.00014999,2]
[331371420,1720293551202,703.55843914,0.00015,2]
[331371421,1720293555897,276.91598406,0.00014999,2]
[331371422,1720293572772,447.56326508,0.00014999,2]
[331371423,1720293617355,423.37938377,0.00014999,2]
[331371424,1720293668726,525.26351233,0.00014999,2]
[331371425,1720293685977,634.32497443,0.00014999,2]
[331371426,1720293713639,182.53971138,0.00014999,2]
[331371427,1720293733829,154.76012181,0.00014999,2]
[331371429,1720293758453,159.08956141,0.00014999,2]
[331371430,1720293762966,285.67677298,0.00014999,2]
[331371432,1720293814730,155.4420667,0.00014999,2]
[331371433,1720293826734,525.26351233,0.00014999,2]
[331371435,1720293845221,402.35776708,0.00014999,2]
[331371436,1720293851111,2132.69930736,0.00014999,2]
[331371437,1720293852896,154.76012181,0.00014999,2]
[331371438,1720293853609,158.19021239,0.00014999,2]
[331371439,1720293865466,154.76012181,0.00014999,2]
[331371440,1720293875208,402.35776708,0.00014999,2]
[331371442,1720293897869,154.76012181,0.00014999,2]
[331371446,1720293942689,510.1563651,0.00014999,2]
[331371448,1720293994557,158.0331141,0.00014999,2]
[331371450,1720294004702,292.77831411,0.00014999,2]
[331371451,1720294011359,155.13895782,0.00014999,2]
[331371452,1720294024698,525.26351233,0.00014999,2]
[331371453,1720294035038,190.85173541,0.00014999,2]
[331371454,1720294039161,-777.12632108,0.00016255,2]
[331371455,1720294039183,-470.92852428,0.000174,2]
[331371456,1720294039204,-507.35891975,0.0001818,2]
[331371457,1720294039227,-166.666666,0.00018879,2]
[331371458,1720294039248,-630.58586962,0.00019039,3]
[331371459,1720294042322,777.12632108,0.00014999,2]
[331371460,1720294053109,-300.57247778,0.0001818,2]
[331371461,1720294053131,-181.9303562,0.00019039,3]
[331371462,1720294053155,-452.955735,0.00019356,2]
[331371463,1720294053178,-54.20809702,0.00019394,2]
[331371467,1720294150122,-777.12632108,0.00016255,2]
[331371468,1720294150148,-371.36715798,0.00016255,2]
[331371469,1720294150176,-112.45856898,0.00019394,2]
[331371470,1720294150200,-671.1312369,0.0001951,2]
[331371471,1720294150227,-174.365209,0.00019631,2]
[331371472,1720294150253,-166.666666,0.00019908,2]
[331371473,1720294150278,-167.4837934,0.0002027,2]
[331371474,1720294150303,-166.666666,0.00020423,2]
[331371475,1720294150328,-1119.9402755,0.00020488,2]
[331371476,1720294150352,-199.9578956,0.00020725,2]
[331371477,1720294150378,-166.666666,0.00020938,2]
[331371478,1720294150406,-165.169179,0.00021096,2]
[331371479,1720294150437,-300.0,0.00021267,2]
[331371480,1720294150463,-300.0,0.00021267,2]
[331371481,1720294150498,-24900.0,0.00021268,2]
[331371482,1720294150525,-166.666666,0.00021452,2]
[331371483,1720294150551,-318.617778,0.00021917,2]
[331371484,1720294150575,-154.76012181,0.0002243,2]
[331371485,1720294150597,-157.43386476,0.0002243,2]
[331371486,1720294150624,-1609.59571044,0.00022479,2]
[331371487,1720294150648,-156.14740668,0.00022579,2]
[331371488,1720294150673,-221.67391521,0.00022579,2]
[331371489,1720294150697,-179.85455723,0.00022579,2]
[331371490,1720294150726,-209.15804517,0.00022579,2]
[331371491,1720294150751,-179.85455723,0.00022579,2]
[331371492,1720294150777,-171.00512532,0.00022941,2]
[331371493,1720294150804,-200.88921051,0.00022943,2]
[331371494,1720294150833,-403.0,0.00023393,2]
[331371495,1720294150858,-154.76012181,0.00023453,2]
[331371496,1720294150883,-154.76012181,0.00023455,2]
[331371497,1720294150908,-155.06527205,0.00023968,2]
[331371498,1720294150933,-174.365209,0.00024179,2]
[331371500,1720294153970,154.76012181,0.00022943,2]
[331371501,1720294154313,154.76012181,0.00023453,2]
[331371504,1720294186761,209.15804517,0.00023507,2]
[331371505,1720294195155,155.69321834,0.00023507,2]
[331371506,1720294200176,200.88921051,0.00023507,2]
[331371507,1720294207842,661.15121769,0.00023507,2]
[331371568,1720294238830,-111.38317229,0.00023507,2]
[331371669,1720294709386,777.12632108,0.00014999,2]
[331371671,1720294762605,271.68538103,0.00014999,2]
[331371672,1720294780601,157.43386476,0.00014999,2]
[331371673,1720294792108,2567.62515585,0.00014999,2]
[331371674,1720294861619,157.43386476,0.00014999,2]
[331371675,1720294963538,661.12832609,0.00014999,2]
[331371676,1720294983905,278.73235131,0.00014999,2]
[331371677,1720295000137,200.88921051,0.00014999,2]
[331371679,1720295012151,402.35776708,0.00014999,2]
[331371680,1720295095469,192.69048508,0.00014999,2]
[331371685,1720295148038,-200.39418766,0.00016255,2]
[331371686,1720295148070,-360.62808166,0.00016255,7]
[331371687,1720295148102,-247.12303499,0.00016255,2]
[331371688,1720295148141,-521.8647405,0.0001818,7]
[331371689,1720295148179,-165.477697,0.00021096,2]
[331371690,1720295148210,-215.10199221,0.00022,2]
[331371691,1720295148233,-200.39418766,0.00022941,2]
[331371692,1720295148258,-360.62808166,0.00022941,2]
[331371693,1720295148270,-247.12303499,0.00022941,2]
[331371694,1720295148294,-521.8647405,0.00022941,2]
[331371695,1720295148308,-165.477697,0.00022941,2]
[331371696,1720295148327,-215.10199221,0.00022941,2]
[331371697,1720295148358,-1578.82053196,0.00022941,2]
[331371699,1720295204432,-179.20092957,0.0001818,7]
[331371700,1720295204471,-166.666666,0.00022792,2]
[331371701,1720295204504,-1038.20655127,0.00022941,2]
[331371702,1720295204536,-71.8629768,0.00022941,2]
[331371703,1720295204587,-88.12575272,0.00022941,2]
[331371704,1720295204597,-91.07517685,0.00022943,2]
[331371705,1720295204614,-68.91355267,0.00022943,2]
[331371706,1720295204625,-97.75311333,0.00022943,2]
[331371707,1720295204641,-57.3887444,0.00022943,2]
[331371708,1720295204651,-453.544579,0.00023071,2]
[331371709,1720295204663,-166.666666,0.00023414,2]
[331371710,1720295204672,-209.15804517,0.00023453,2]
[331371711,1720295204681,-151.4485167,0.00023455,2]
[331371712,1720295204694,-57.20183821,0.00023455,2]
[331371713,1720295204703,-102.78689131,0.00023507,2]
[331371716,1720295236180,-209.15804517,0.00022943,2]
[331371717,1720295236206,-174.36521,0.00023199,2]
[331371718,1720295236231,-208.65035491,0.00023453,2]
[331371719,1720295236257,-898.50429514,0.00023507,2]
[331371720,1720295236283,-64.24209478,0.00023773,2]
[331371756,1720295347110,-194.914957,0.00021096,2]
[331371757,1720295347134,-777.12632108,0.00023453,2]
[331371758,1720295347158,-509.9900595,0.00023519,2]
[331371759,1720295347185,-300.0,0.00023772,2]
[331371760,1720295347215,-300.0,0.00023772,2]
[331371761,1720295347240,-434.16700038,0.00023773,2]
[331371763,1720295421955,618.2814932,0.00022947,2]
[331371764,1720295433132,-413.01757721,0.00023749,2]
[331371855,1720295435255,-440.82299159,0.00023749,2]
[331371856,1720295435267,-300.0,0.00023772,2]
[331371857,1720295435279,-287.0,0.00023772,2]
[331371858,1720295435291,-1879.42700841,0.00023773,2]
[331371859,1720295435432,-6842.66476733,0.00023773,2]
[331371860,1720295435462,-10229.43525131,0.00023773,2]
[331371861,1720295435483,-225.57506949,0.00023773,2]
[331371862,1720295435499,-239.25593046,0.00023773,2]
[331371863,1720295435518,-429.93211519,0.00023773,2]
[331371864,1720295435535,-733.99330087,0.00023773,2]
[331371887,1720295440794,-91.94564137,0.00023773,2]
[331371892,1720295440821,-2517.76719657,0.00023773,2]
[331371906,1720295443589,-2179.57553538,0.00023773,2]
[331371907,1720295443602,-185.75790522,0.00023773,2]
[331371908,1720295443613,-166.666666,0.00024035,2]
[331371909,1720295443625,-24900.0,0.00024208,2]
[331371910,1720295443635,-163.081609,0.00024358,2]
[331371911,1720295443673,-166.666666,0.00024656,2]
[331371912,1720295443691,-166.666666,0.00025278,2]
[331371913,1720295443721,-17254.90254106,0.00025501,2]
[331371914,1720295443762,-166.666666,0.00025899,2]
[331371915,1720295443826,-420.0,0.00026149,2]
[331371916,1720295443837,-190.71508422,0.00027184,2]
[331371917,1720295443848,-154.76012181,0.00027184,2]
[331371918,1720295443860,-723.6137849,0.00027184,2]
[331371919,1720295443878,-220.84480133,0.00027184,2]
[331371920,1720295443921,-178.56056595,0.00027194,2]
[331371921,1720295443932,-194.914957,0.00027195,2]
[331371922,1720295443942,-500.0,0.00027397,2]
[331371923,1720295443951,-500.0,0.00027397,2]
[331371924,1720295443961,-500.0,0.00027397,2]
[331371925,1720295443985,-500.0,0.00027397,2]
[331371926,1720295443997,-500.0,0.00027397,2]
[331371927,1720295444008,-85.27065251,0.00027397,120]
[331371928,1720295444266,-139.53929249,0.00027397,120]
[331371929,1720295444296,-816.18874586,0.00027399,7]
[331371930,1720295444310,-208.75741241,0.00027399,2]
[331371931,1720295444340,-150.0,0.000279,2]
[331371932,1720295444351,-250.0,0.00028448,2]
[331371933,1720295444374,-1000.0,0.000286,11]
[331371934,1720295444398,-294.0,0.00028764,2]
[331371935,1720295444409,-261.39,0.00028804,3]
[331371936,1720295444420,-69.98856658,0.00028804,3]
[331371937,1720295444432,-714.22143342,0.00028804,3]
[331371938,1720295444446,-3776.69,0.00028804,3]
[331371939,1720295444458,-948.84245203,0.00028815,2]
[331371940,1720295444470,-777.12632108,0.00028815,2]
[331371941,1720295444493,-777.12632108,0.00028815,2]
[331371942,1720295444504,-160.49062556,0.00028815,2]
[331371943,1720295444517,-41029.42307388,0.00028986,3]
[331371944,1720295444531,-2635.31355083,0.00028986,3]
[331371945,1720295445606,-4785.99208401,0.00028986,3]
[331371946,1720295445646,-3167.34922923,0.00028986,3]
[331371947,1720295445680,-2989.06959,0.00028986,3]
[331371995,1720295448099,-4769.46540445,0.00028986,3]
[331371996,1720295448110,-350.0,0.00028996,2]
[331371998,1720295448139,-164.0,0.00029,2]
[331372000,1720295448150,-164.0,0.00029041,2]
[331372002,1720295448171,-1000.0,0.000291,11]
[331372003,1720295448182,-300.0,0.00029253,2]
[331372007,1720295448222,-300.0,0.00029298,2]
[331372008,1720295448232,-300.0,0.00029305,2]
[331372009,1720295448243,-224.7871,0.00029353,30]
[331372012,1720295448266,-450.0,0.00029544,2]
[331372013,1720295448281,-1000.0,0.000296,11]
[331372015,1720295448305,-495.50543718,0.0003,4]
[331372016,1720295448316,-157.27126622,0.0003,4]
[331372017,1720295448471,-213.234,0.0003,7]
[331372018,1720295448493,-277.4321417,0.0003,4]
[331372019,1720295448506,-351.32038796,0.0003,30]
[331372020,1720295448519,-550.0,0.00030092,2]
[331372021,1720295448529,-1000.0,0.000301,11]
[331372022,1720295448540,-522.78,0.00030174,3]
[331372023,1720295448555,-164.0,0.00030205,2]
[331372024,1720295448565,-1000.0,0.000306,11]
[331372025,1720295448575,-650.0,0.0003064,2]
[331372026,1720295448605,-1000.0,0.000311,11]
[331372027,1720295448618,-750.0,0.00031188,2]
[331372028,1720295448654,-1000.0,0.000316,11]
[331372029,1720295448665,-169.0,0.00031716,2]
[331372030,1720295448681,-850.0,0.00031736,2]
[331372031,1720295448691,-1000.0,0.000321,11]
[331372032,1720295448704,-950.0,0.00032284,2]
[331372033,1720295448715,-158.6,0.000325,62]
[331372034,1720295448726,-1000.0,0.000326,11]
[331372035,1720295448738,-1050.0,0.00032832,2]
[331372036,1720295448807,-1000.0,0.000331,11]
[331372037,1720295448821,-194.914957,0.00033295,2]
[331372038,1720295448831,-900.0,0.00033379,2]
[331372039,1720295448841,-706.63540107,0.00034517,4]
[331372040,1720295448851,-453.544579,0.00034606,2]
[331372041,1720295448860,-164.0,0.00034887,2]
[331372042,1720295448871,-962.96577273,0.00035,4]
[331372043,1720295448881,-535.72772343,0.00035,120]
[331372044,1720295448891,-151.0,0.00035401,15]
[331372045,1720295448902,-531.56332391,0.00036,30]
[331372046,1720295448913,-164.0,0.00036247,2]
[331372047,1720295448927,-151.0,0.00036984,15]
[331372048,1720295448953,-154.80649189,0.00037,4]
[331372049,1720295448965,-587.0,0.0003777,120]
[331372050,1720295448981,-412.3444004,0.00037798,2]
[331372051,1720295449004,-164.0,0.00038059,2]
[331372052,1720295449029,-412.362969,0.00038072,2]
[331372053,1720295449060,-151.0,0.00038567,15]
[331372054,1720295449132,-150.0,0.00038765,2]
[331372055,1720295449143,-500.0,0.00039,5]
[331372056,1720295449153,-153.0,0.00039041,2]
[331372057,1720295449163,-153.0,0.00039041,2]
[331372058,1720295449220,-153.0,0.00039041,2]
[331372059,1720295449236,-153.0,0.00039041,2]
[331372060,1720295449262,-153.0,0.00039041,2]
[331372061,1720295449274,-153.0,0.00039041,2]
[331372062,1720295449295,-153.0,0.00039041,2]
[331372063,1720295449344,-153.0,0.00039041,2]
[331372064,1720295449355,-154.79103211,0.000392,10]
[331372065,1720295449366,-293.3880832,0.00039233,2]
[331372066,1720295449376,-194.914957,0.00039394,2]
[331372067,1720295449386,-153.0,0.00039643,2]
[331372068,1720295449398,-153.0,0.00039643,2]
[331372069,1720295449408,-153.0,0.00039643,2]
[331372071,1720295449418,-153.0,0.00039726,2]
[331372073,1720295449437,-293.3880832,0.00039726,2]
[331372075,1720295449460,-153.0,0.00039726,2]
[331372076,1720295449472,-293.3880832,0.00039726,2]
[331372077,1720295449487,-153.0,0.00039726,2]
[331372078,1720295449498,-153.0,0.00039726,2]
[331372079,1720295449515,-306.0,0.00039726,2]
[331372080,1720295449529,-153.0,0.00039726,2]
[331372081,1720295449554,-153.0,0.00039726,2]
[331372082,1720295449565,-153.0,0.00039726,2]
[331372083,1720295449583,-153.0,0.00039726,2]
[331372084,1720295449594,-293.3880832,0.00039726,2]
[331372085,1720295449604,-153.0,0.00039726,2]
[331372086,1720295449614,-293.3880832,0.00039726,2]
[331372087,1720295449624,-153.0,0.00039726,2]
[331372088,1720295449661,-153.0,0.00039726,2]
[331372089,1720295449714,-153.0,0.00039726,2]
[331372090,1720295449757,-293.3880832,0.00039726,2]
[331372091,1720295449781,-153.0,0.00039726,2]
[331372092,1720295449793,-293.3880832,0.00039726,2]
[331372093,1720295449805,-153.0,0.00039726,2]
[331372094,1720295449845,-153.0,0.00039726,2]
[331372095,1720295449855,-293.3880832,0.00039726,2]
[331372096,1720295449867,-153.0,0.00039726,2]
[331372097,1720295449911,-293.3880832,0.00039726,2]
[331372098,1720295449922,-153.0,0.00039726,2]
[331372099,1720295449933,-206.1814845,0.00039726,2]
[331372100,1720295449943,-293.3880832,0.00039726,2]
[331372101,1720295449953,-153.0,0.00039726,2]
[331372102,1720295450002,-153.0,0.00039726,2]
[331372103,1720295450013,-206.1814845,0.00039726,2]
[331372104,1720295450025,-206.1814845,0.00039726,2]
[331372105,1720295450036,-153.0,0.00039726,2]
[331372106,1720295450074,-293.3880832,0.00039726,2]
[331372107,1720295450091,-206.1814845,0.00039726,2]
[331372108,1720295450135,-153.0,0.00039726,2]
[331372109,1720295450147,-293.3880832,0.00039726,2]
[331372110,1720295450195,-206.1814845,0.00039726,2]
[331372111,1720295450221,-153.0,0.00039726,2]
[331372112,1720295450231,-206.1814845,0.00039726,2]
[331372113,1720295450241,-206.1814845,0.00039726,2]
[331372114,1720295450266,-153.0,0.00039726,2]
[331372115,1720295450320,-153.0,0.00039726,2]
[331372116,1720295450330,-206.1814845,0.00039726,2]
[331372117,1720295450340,-153.0,0.00039726,2]
[331372118,1720295450371,-206.1814845,0.00039726,2]
[331372119,1720295450390,-206.1814845,0.00039726,2]
[331372120,1720295450484,-153.0,0.00039726,2]
[331372121,1720295450496,-153.0,0.00039726,2]
[331372122,1720295450507,-306.0,0.00039726,2]
[331372123,1720295450537,-206.1814845,0.00039726,2]
[331372124,1720295450561,-253.3635458,0.00039726,2]
[331372125,1720295450571,-206.1814845,0.00039726,2]
[331372126,1720295450581,-467.89592226,0.0003988,120]
[331372127,1720295450599,-725.55474896,0.000399,2]
[331372128,1720295450609,-59376.6129324,0.0003998,5]
[331372129,1720295450619,-197.24921871,0.00039989,31]
[331372130,1720295450631,-500.0,0.00039989,31]
[331372131,1720295450648,-500.0,0.00039989,31]
[331372132,1720295450660,-200.0,0.00039989,31]
[331372133,1720295450703,-500.0,0.00039989,31]
[331372134,1720295450732,-500.0,0.00039989,31]
[331372135,1720295450745,-500.0,0.00039989,31]
[331372136,1720295450756,-500.0,0.00039989,31]
[331372137,1720295450766,-500.0,0.00039989,31]
[331372138,1720295450796,-411.220236,0.00039989,31]
[331372139,1720295450847,-500.0,0.00039989,31]
[331372140,1720295450857,-500.0,0.00039989,31]
[331372141,1720295450894,-1664.6,0.00039989,10]
[331372142,1720295450929,-59376.6129324,0.0003999,5]
[331372143,1720295450948,-151.0,0.0003999,14]